Cogmind - Beta 17 @@@ ROGUE MODE // 2026.07.31 @ 01:04:41 Player: LandRaider Result: Destroyed by L-31 Rogue with Katana Performance ------------- Evolutions (1) 500 Regions Visited (2) 400 Robots Destroyed (78) 390 Value Destroyed (1830) 1830 Prototype IDs (8) 160 Alien Tech Used (0) 0 Bonus (125) 125 TOTAL SCORE: 3405 Bonus ------- High Alert Combat Kills 125 Cogmind --------- Core Integrity 0/400 Matter 288/300 Energy 139/160 System Corruption 0% Temperature Cool (3) Movement Treading (320) Ox2 Location -9/Materials Parts ------- > --- POWER (1) -------- Light Nuclear Core > --- PROPULSION (2) --- Light Treads > --- UTILITY (4) ------ High-capacity Storage Unit Signal Interpreter Utility Shielding Hacking Suite > --- WEAPON (2) ------- Improved Assault Rifle > --- INVENTORY (20) --- Improved Ion Engine Improved Heat Sink Visual Processing Unit Transport Network Coupler ECM Suite Light Armor Plating Hacking Suite Improved EM Shotgun Improved EM Shotgun Beam Rifle Light EM Pulse Cannon Heavy Assault Rifle Improved Light Cannon Rocket Launcher Rocket Launcher Datajack Maul Peak State ------------ > --- POWER ------------ Light Nuclear Core > --- PROPULSION ------- Light Treads Light Treads > --- UTILITY ---------- High-capacity Storage Unit Signal Interpreter Utility Shielding Hacking Suite > --- WEAPON ----------- Improved Assault Rifle Improved Assault Rifle > --- INVENTORY -------- Improved Ion Engine Improved Heat Sink Visual Processing Unit Transport Network Coupler ECM Suite Light Armor Plating Hacking Suite Improved EM Shotgun Improved EM Shotgun Improved EM Shotgun Small Laser Beam Rifle Light EM Pulse Cannon Light EM Pulse Cannon Heavy Assault Rifle Improved Light Cannon Rocket Launcher Rocket Launcher Datajack Maul [Rating: 21] Favorites ----------- Power Ion Engine Engine Ion Engine Power Core Light Nuclear Core Propulsion Aluminum Leg Treads Light Treads Leg Aluminum Leg Wheel Compact Wheel Utility Signal Interpreter Device Terrain Scanner Storage High-capacity Storage Unit Processor Signal Interpreter Hackware Hacking Suite Protection Light Armor Plating Weapon Small Laser Energy Gun Small Laser Energy Cannon Light EM Pulse Cannon Ballistic Gun Improved Assault Rifle Launcher Rocket Launcher Impact Weapon Maul Build | -11 -10 -9 ------- Run | Yrd Mat Mat Slots Evolved 2 | . . 2 Power . | . . . Propulsion . | . . . Utility 2 | . . 2 Weapon . | . . . Parts Attached 47 | 9 6 32 Power 8 | 1 1 6 Engine 7 | 1 1 5 Core 1 | . . 1 Reactor . | . . . Propulsion 16 | 5 2 9 Treads 6 | 1 . 5 Leg 8 | 2 2 4 Wheel 2 | 2 . . Hover . | . . . Flight . | . . . Utility 10 | 1 2 7 Device 1 | . . 1 Storage 3 | 1 1 1 Processor 2 | . 1 1 Hackware 1 | . . 1 Protection 3 | . . 3 Artifact . | . . . Weapon 13 | 2 1 10 Energy Gun 3 | 2 . 1 Energy Cannon 2 | . . 2 Ballistic Gun 6 | . 1 5 Ballistic Cannon . | . . . Launcher 1 | . . 1 Special Weapon . | . . . Impact Weapon 1 | . . 1 Slashing Weapon . | . . . Piercing Weapon . | . . . Special Melee Weapon . | . . . Unidentified Prototypes . | . . . Parts Lost 11 | . 1 10 Power 2 | . . 2 Propulsion 4 | . 1 3 Utility 2 | . . 2 Weapon 3 | . . 3 Highest Loss Streak 2 | . 1 2 To Critical Strikes . | . . . Average Backups 15 | 4 10 18 Power 1 | . 1 1 Propulsion 1 | 2 2 1 Utility 4 | . 2 5 Weapon 7 | 1 3 8 Tool/Special . | . . . Unused Backups 22 | . 1 21 Power 1 | . . 1 Propulsion . | . . . Utility 8 | . 1 7 Weapon 12 | . . 12 Tool/Special 1 | . . 1 Average Slot Usage (%) 97 | . 99 97 Engine 11 | . 14 9 Treads 6 | . . 10 Leg 17 | . 27 11 Storage 12 | . 14 11 Processor 13 | . 13 12 Hackware 5 | . . 8 Protection 5 | . . 8 Energy Gun 8 | . 16 4 Ballistic Gun 13 | . 11 14 Peak Build Rating 21 | 6 8 21 Average Rating 13 | 4 7 16 On Entrance 4 | . 6 8 Avg Prop Armor Cover (%) 18 | 18 . . Naked Turns . | . . . Heaviest Build 56 | 13 48 56 Greatest Support 40 | 20 20 40 Greatest Overweight (x) 5 | . 4 5 Average Overweight (x) 1 | . 1 1 Largest Inventory Capacity 20 | 8 20 20 Average Capacity 19 | 6 19 20 Most Carried 20 | 6 13 20 Average Carried 15 | 4 10 18 Final Capacity 20 | 8 20 20 Final Carried 17 | 6 12 17 Class Distribution -------------------- 59% | Mutant 40% | Scavenger-Mutant Dominant Class ---------------- Mutant | -10/Materials Scavenger-Mutant | -9/Materials Resources | -11 -10 -9 ----------- Run | Yrd Mat Mat Matter Collected 1545 | 231 186 1128 Remotely . | . . . Salvage Created 2569 | . 675 1894 Parts 186 | . 51 135 Haulers Intercepted 6 | . 2 4 Recyclers Shooed . | . . . Parts Field Recycled . | . . . Retrieved Matter . | . . . Parts Self-Destructed . | . . . Prevented . | . . . Parts Restored . | . . . Kills | -11 -10 -9 ------- Run | Yrd Mat Mat Combat Hostiles Destroyed 55 | . 13 42 Guns 46 | . 11 35 Cannons 2 | . . 2 AOE 7 | . 2 5 Classes Destroyed 11 | . 8 3 Worker 4 | . . 4 Builder 2 | . 1 1 Tunneler 1 | . 1 . Hauler 6 | . 2 4 Recycler 1 | . 1 . Operator 2 | . 1 1 Watcher 7 | . 3 4 Swarmer 17 | . 6 11 Grunt 27 | . 7 20 Duelist 1 | . . 1 Sentry 10 | . . 10 Best Kill Streak 6 | . 4 6 Combat Bots Only 5 | . 3 5 Max Kills in Single Turn 3 | . 3 2 Gunslinging 1 | . . 1 Exploded 2 | . 2 1 Melee . | . . . Uniques/NPCs Destroyed . | . . . Combat | -11 -10 -9 -------- Run | Yrd Mat Mat Hostile Shots Fired 331 | . 81 250 Missed 96 | . 25 71 Hits 235 | . 56 179 Melee 9 | . . 9 Projectile 226 | . 56 170 Critical Strikes 8 | . 1 7 Damage Taken 2899 | . 617 2282 Core 538 | . 134 404 Absorbed by Shields . | . . . Redirected to Shielding 3 | . . 3 Regen/Repaired (Parts) 81 | . . 81 Core Remaining (%) 73 | 100 46 . Volleys Fired 215 | . 56 159 Largest 2 | . 2 2 Hottest 80 | . 80 79 Shots Fired 380 | . 109 271 Gun 354 | . 109 245 Cannon 11 | . . 11 Launcher 15 | . . 15 Special . | . . . Kinetic 225 | . 34 191 Thermal 79 | . 54 25 Explosive 15 | . . 15 Electromagnetic 61 | . 21 40 Robot Hit Streak 15 | . 12 15 Robot Miss Streak 6 | . 5 6 Penetration Max . | . . . Secondary Targets 5 | . 1 4 Max Gunslinging Chain 1 | . 1 1 Shots Hit Robots 253 | . 69 184 Core Hits 119 | . 31 88 Critical Kills 1 | . . 1 Critical Parts Destroyed . | . . . Critical Strikes 2 | . 1 1 Destroy 1 | . . 1 Corrupt 1 | . 1 . Melee Attacks 8 | . . 8 Impact 8 | . . 8 Slashing . | . . . Piercing . | . . . Sneak Attacks . | . . . Combat Hostiles . | . . . Follow-up Attacks . | . . . Damage Inflicted 4523 | . 1149 3374 Guns 3489 | . 864 2625 Cannons 185 | . . 185 Explosions 849 | . 285 564 Melee . | . . . Ramming . | . . . Kinetic 2270 | . 314 1956 Thermal 813 | . 632 181 Explosive 564 | . . 564 Electromagnetic 876 | . 203 673 Impact . | . . . Slashing . | . . . Piercing . | . . . Highest Corruption . | . . . Average Corruption . | . . . Corruption Purged . | . . . Corruption Blocked . | . . . Overload Shots . | . . . Overflow Damage 51 | . 4 47 Projectiles 10 | . . 10 Explosions 41 | . 4 37 Melee . | . . . Knockbacks . | . . . Impact . | . . . Kinetic . | . . . Secondary . | . . . Self-Inflicted Damage 62 | . . 62 Shots 2 | . . 2 Rammed . | . . . Targets Rammed . | . . . Kicked . | . . . Crushed . | . . . Highest Temperature 180 | . 180 114 Average Temperature 36 | . 48 28 Received Heat Transfer 1032 | . 276 756 Siege Activations . | . . . Martial Activations . | . . . Shielding Activations . | . . . Robots Disrupted 1 | . . 1 Combat Hostiles 1 | . . 1 Robots Corrupted . | . . . Combat Hostiles . | . . . Parts Fried 3 | . . 3 Impact Corruptions . | . . . Robots Melted . | . . . Combat Hostiles . | . . . Parts Melted . | . . . Heat Transferred 1550 | . 1125 425 Parts Sabotaged . | . . . Parts Stolen . | . . . Parts Stripped . | . . . Power Chain Reactions 4 | . 4 . Alert | -11 -10 -9 ------- Run | Yrd Mat Mat Maximum Alert Level 3 | . . 3 Low Security (%) 50 | 100 100 22 Level 1 26 | . . 42 Level 2 14 | . . 23 Level 3 7 | . . 11 Level 4 . | . . . Level 5 . | . . . High Security . | . . . Max Security . | . . . Peak Influence 721 | . 113 721 Initial . | . . . Average 211 | . 28 318 Influence Increases 1809 | . 388 1421 Destroy 0b10 Robot/C 1100 | . 260 840 Destroy 0b10 Robot/NC 115 | . 45 70 Destroy Leader 296 | . 60 236 Successful Hack 55 | . 9 46 Disable Machine 15 | . . 15 Destroy Structure 123 | . 14 109 Lose Combat Pursuer 105 | . . 105 Influence Decreases 1111 | . 388 723 Time Decay 1010 | . 378 632 Lost Part 101 | . 10 91 Squads Dispatched 12 | . 3 9 Investigation 8 | . 2 6 Extermination . | . . . Reinforcement 2 | . 1 1 Assault 2 | . . 2 Garrison . | . . . Intercept . | . . . Searches Triggered . | . . . Construction Impeded . | . . . Haulers Reinforced . | . . . Active Scanning Responses . | . . . Cargo Convoy Interrupts . | . . . Stealth | -11 -10 -9 --------- Run | Yrd Mat Mat Distress Signals 6 | . 4 2 Communications Jammed . | . . . Distress Signals . | . . . Times Spotted 89 | . 26 63 Peak Tracking Total 6 | . 4 6 Tactical Retreats 5 | . . 5 Traps | -11 -10 -9 ------- Run | Yrd Mat Mat Traps Triggered 1 | . . 1 Indirectly . | . . . Trap Hack Attempts . | . . . Triggered . | . . . Disarmed . | . . . Reprogrammed . | . . . Reused . | . . . Traps Extracted . | . . . Installed . | . . . Triggered . | . . . Machines | -11 -10 -9 ---------- Run | Yrd Mat Mat Machines Disabled 1 | . . 1 Max in Single Turn 1 | . . 1 Machines Repaired . | . . . Machines Dismantled . | . . . Machines Sabotaged . | . . . Overloaded Fab Kills . | . . . Hacking | -11 -10 -9 --------- Run | Yrd Mat Mat Machines Accessed 19 | . 6 13 Terminals 13 | . 4 9 Fabricators . | . . . Repair Stations 1 | . . 1 Recycling Units 3 | . 2 1 Scanalyzers 2 | . . 2 Garrison Access . | . . . Total Hacks 61 | . 13 48 Successful 38 | . 7 31 Failed 22 | . 6 16 Catastrophic 4 | . 1 3 Database Lockouts 1 | . . 1 Manual . | . . . Terminals 44 | . 11 33 Fabricators . | . . . Repair Stations 2 | . . 2 Recycling Units 3 | . 2 1 Scanalyzers 12 | . . 12 Garrison Access . | . . . Terminal Hacks 23 | . 5 18 Record 1 | . . 1 Robot Analysis 2 | . . 2 Prototype ID Bank 4 | . 2 2 Emergency Access Points 1 | . . 1 Alert Level 2 | . . 2 Locate Traps 1 | . 1 . Dispatch Records 1 | . 1 . Maintenance Status 2 | . . 2 Transport Status 1 | . . 1 Reinforcement Status 1 | . . 1 Recall Assault 1 | . . 1 Hauler Manifests 4 | . 1 3 Zone Layout 2 | . . 2 Fabricator Hacks . | . . . Repair Station Hacks 2 | . . 2 Scan Component 1 | . . 1 Repair 1 | . . 1 Recycling Unit Hacks 3 | . 2 1 Report Inventory 3 | . 2 1 Scanalyzer 10 | . . 10 Insert Component 5 | . . 5 Analyze 4 | . . 4 Retrieve Study 1 | . . 1 Garrison Access Hacks . | . . . Unauthorized Hacks . | . . . Terminals . | . . . Fabricators . | . . . Repair Stations . | . . . Recycling Units . | . . . Scanalyzers . | . . . Garrison Access . | . . . Data Cores Recovered . | . . . Used . | . . . Hacking Detections 15 | . 4 11 Full Trace Events 10 | . 3 7 Feedback Events . | . . . Feedback Blocked . | . . . Robot Schematics Acquired . | . . . Robots Built . | . . . Authchips . | . . . Time . | . . . Total Robot Build Rating . | . . . Part Schematics Acquired 3 | . . 3 Parts Built . | . . . Authchips . | . . . Time . | . . . Total Part Build Rating . | . . . Part Studies Acquired 1 | . . 1 Parts Repaired 1 | . . 1 Time 26 | . . 26 Parts Recycled . | . . . Recycled Matter . | . . . Retrieved Matter . | . . . Retrieved Components . | . . . Parts Scanalyzed 3 | . . 3 Part Schematics Acquired 3 | . . 3 Parts Damaged 1 | . . 1 Bothacking | -11 -10 -9 ------------ Run | Yrd Mat Mat Used RIF Installer . | . . . Robots Hacked . | . . . Non-combat . | . . . Combat . | . . . Robot Hacks Applied . | . . . Relay Couplers Released . | . . . Fabnet Peak Effective % . | . . . Robots Rewired . | . . . Allies Hacked . | . . . Hacks Repelled . | . . . Allies | -11 -10 -9 -------- Run | Yrd Mat Mat Total Allies . | . . . Largest Group . | . . . Highest-Rated Group . | . . . Highest-Rated Ally . | . . . Total Orders . | . . . Ally Attacks . | . . . Total Damage . | . . . Kills . | . . . Allies Corrupted . | . . . Allies Melted . | . . . Intel | -11 -10 -9 ------- Run | Yrd Mat Mat Active Infowar (turns) 460 | . . 460 Terrain 460 | . . 460 Robot Analysis Total 2 | . . 2 Derelict Logs Recovered . | . . . Drone Launches . | . . . Drone Recoveries . | . . . Exploration | -11 -10 -9 ------------- Run | Yrd Mat Mat Turns Passed 5285 | 68 1880 3337 Spaces Moved 1691 | 45 617 1029 Core 11 | 11 . . Treads 511 | . . 511 Legs 1159 | 24 617 518 Wheels 10 | 10 . . Hover . | . . . Flight . | . . . Fastest Speed 50 | 50 120 240 Average Speed 247 | 98 253 251 Slowest Speed 470 | 120 400 470 Overloaded Moves . | . . . Propulsion Burnouts . | . . . Robots Hopped . | . . . Potential Cave-ins 2 | . . 2 Cave-ins Triggered . | . . . Exploration Rate (%) 58 | 3 91 82 Regions Visited 2 Branch Regions . Pre-discovered Areas . | . . . Known Exits Taken 1 | . 1 . Unknown Exits Taken 1 | 1 . . Scrap Searched . | . . . Spaces Dug 8 | . . 8 Terrain Destroyed 181 | . 13 168 Melee 8 | . . 8 Projectile . | . . . AOE 173 | . 13 160 Terrain Rammed . | . . . Walls Destroyed . | . . . Machines Disabled . | . . . Actions | -11 -10 -9 --------- Run | Yrd Mat Mat Total 2393 | 66 827 1500 Wait 327 | . 130 197 Move 1689 | 44 616 1029 Hop . | . . . Pick Up 64 | 12 13 39 Fast Attach 3 | . 1 2 Attach 23 | 6 1 16 Detach 1 | . . 1 Swap 31 | 4 4 23 Drop 31 | . 6 25 Fire 215 | . 56 159 Melee 8 | . . 8 Ram . | . . . Kick . | . . . Crush . | . . . Escape Stasis . | . . . Rewire 1 | . . 1 Trap . | . . . Miscellaneous . | . . . Route ------- -11/Scrapyard -10/Materials (discovered 4 exits: *Mat x3 / [*Min]) -9/Materials (discovered 3 exits: *Mat x2 / [*Min]) History --------- Turn | Location | Event 9 | -11/Scrapyard | Discovered new exit (range 16) 69 | -11/Scrapyard | Entered Materials 309 | -10/Materials | Build established: Mutant 439 | -10/Materials | Discovered new exit (range 16) 657 | -10/Materials | Discovered new exit (range 13) 1217 | -10/Materials | Discovered new exit (range 16) 1543 | -10/Materials | Discovered new exit (range 8) 1939 | -10/Materials | Core integrity fell below 50% 1946 | -10/Materials | Identified exit to Materials 1949 | -10/Materials | Entered another Materials area 1949 | -9/Materials | Evolved 2 slots: Utility x2 2685 | -9/Materials | Discovered new exit (range 15) 3440 | -9/Materials | Central database locked down 3538 | -9/Materials | Build established: Scavenger-Mutant 3766 | -9/Materials | Discovered new exit (range 12) 3915 | -9/Materials | Repaired Lgt. Armor Plating 4138 | -9/Materials | Discovered new exit (range 15) 4293 | -9/Materials | Identified exit to Materials 4579 | -9/Materials | Core integrity fell below 50% 4749 | -9/Materials | First assault squad dispatched 4889 | -9/Materials | Core integrity fell below 20% 5286 | -9/Materials | Destroyed by L-31 Rogue with Katana Last Messages --------------- >>Recall(Assault) Establishing remote squad link... Recalled assault squad 1196XCCOOM. >>Alert(Check) Current Alert Level: 3-B 05200_ ALERT: Suspicious activity at Terminal M011. Dispatching Investigation squad. 05220_ Connecting with Scanalyzer... >>Insert(Imp. EM Shotgun) Scanning Imp. EM Shotgun... Ready to analyze. 05253_ K-01 Serf destroyed. 05256_ Acquired 19 matter. 05259_ Extracted 19 matter. 05261_ C-30 ARC bursts open, deploying its payload. 05261_ L-31 Rogue unfolds itself. 05261_ G-34 Mercenary unfolds itself. 05275_ Lgt. EM Pulse Cannon severed. 05284_ Lgt. Treads destroyed. 05286_ Imp. EM Shotgun destroyed. Map ----- +----------------------------------------------------+ | # #???? ????????? | | "T" ####/####### #??????? | | # ################## ==| +??????? | | # #???????# # ^== #??????? | | # #???????# """ # =| #??"???? | | # /???"???# """ # ^ #??"???? | | #???????# """ !# #??????? | | #???????# =+% ^ ######## | | #???????# """ # # # | | # ######### """ # # "" # | | # ## ## """ [ ##### # "Y # | | # ## ## #???# """"" # "" # | | # ## "" #######%###??## """"" # # | | # ## """#?????####???## """"" + """ # | | # ## S"#?#?????#?????# # """ # | | # ## #??#####???#??#^ ^ # """ # | | ###+#+#### ##????##t # # | | #?#?#?# + ]] # | | T ### #???### !! # ]] # | | #### ##???? # !! # ] # | | #####+###?# ######## %!! + # | | ### #?#"%"* != ##### ##+############# | | #?# """"" #?########## # ?# # #???#???? | | #?# """"" #??????? # # #?# # #???????? | | #?# """"" #??????? ##l# ??# # #???????? | | #?# #??##??# #@# ?## # #???????? | | #?#########???#???? # # ??# # #??#????? | | #####???????????#?? # # ??# # #???????? | | !!#???????????#### # ##### #########?#????? | | !!#?????????#??## # ## ##?????????????? | | [[#?????????????# # ## ####???#?#????????? | | [ [[#???????#???#?# ## ## #?????????????????? | | ]]#???????#??????# # ## ##????????????????? | | ]]#???????????????## ## #????#??#?????????? | | ## #####?????????#?#??## ##+#######???????????? | | ?# #??????????????#??## # #???????????? | | ## ##??????????#??????# # # ##??????????? | | # #?????????????????### # ##??????????? | | #??????????#??????# # # ####????????? | | # #?????????????????### # # ##????????? | | ##+##?????????????????# # # ## #????????? | | ??????????????????????# # # "T" %# #????????? | | ???????????????########## # """ ## #????????? | | ??????????????# ##=# ####????????? | | ??????????????# """ ##!#####+#####??????????? | | ??????????????# """ ## ### #????????????? | | ??????????????# """ #!* #????????????? | | ??????????????# =+ = T #????????????? | | ??????????????# """ *# [ = #????????????? | | ??????????????# """ ###### #????????????? | +----------------------------------------------------+ Best States ------------- Heat Dissipation 28 Energy Generation 14 Energy Capacity 265 Matter Stores 300 Matter Capacity 300 Sight Range 16 Terrain Scan Range 14 Terrain Scan Density 10 Armor Coverage 150 Utility Shielding 33 Evasion (%) 55 Recoil Reduction 2 Offensive Hacking 10 Item Schematics ----------------- Imp. Assault Rifle | -9/Materials | Scanalyzed Hvy. Assault Rifle | -9/Materials | Scanalyzed Transport Network Coupler | -9/Materials | Scanalyzed Robot Schematics ------------------ None Fabricated ------------ Nothing Repaired ---------- Lgt. Armor Plating | 10% | -9/Materials Studied --------- Rocket Launcher | -9/Materials | Hacked Alien Tech Used ----------------- None Achievements -------------- Dramatic Entrance Challenges ------------ None Game ------ Seed CoilTachyonMace Manual? 0 Play Time 01:17:45 Cumulative 21.7 hours Start 2026.07.30 @ 18:27:09 End 2026.07.31 @ 01:04:41 Sessions 1 Manual Loads 0 Difficulty Rogue Special Mode None Game No. 17 Rogue 15 Adventurer 2 Explorer 0 Win Type - Total 0 Types 0/0/0/0/0/0/0/0/0/0 Lore% 18 Gallery% 14 Achievement% 15 Wizard Run 0 Options --------- Layout 0 ASCII 0 Keyboard 0 Movement Mouse Keybinds 0 Fullscreen 2 Font 24/Smallcaps Map View 76x50 Zoom Use 0% Tactical HUD 1 Map Filters NONE Filters NONE Steam 1 RUN: a1f9f3c9-e699-4992-8ab3-893db5d0f4df